bitfinex/quotes_ETHUSD_20241023
["timestamp","ask_amount","ask_price","bid_price","bid_amount"]
[1729709195911,4.46621231,2490.8,2490.1,0.08030672]
[1729709196112,0.12402514,2490.7,2490.1,0.08030672]
[1729709196312,4.01461,2490.9,2490.2,0.83946372]
[1729709196512,4.01381,2491.4,2490.4,4.01533]
[1729709196513,0.12402514,2490.8,2490.4,4.01533]
[1729709196751,0.761,2491.6,2490.7,4.01493]
[1729709196752,4.77451,2491.6,2490.7,4.01493]
[1729709197059,4.0135,2491.6,2490.8,4.93443213]
[1729709197349,4.0135,2491.6,2491.0,0.83946372]
[1729709197516,4.0135,2491.6,2490.9,0.83946372]
[1729709197722,4.01366,2491.5,2490.9,1.51654657]
[1729709198321,8.47954231,2491.7,2491.0,0.83946372]
[1729709198727,4.01373,2491.5,2491.1,0.83946372]
[1729709198940,8.02752,2491.5,2491.0,0.83946372]
[1729709199130,4.01391,2491.4,2491.0,0.83946372]
[1729709199326,4.46621231,2491.7,2491.0,0.83946372]
[1729709199530,4.01382,2491.4,2491.1,0.83946372]
[1729709199838,4.01429,2491.1,2490.8,0.83946372]
[1729709200025,4.01442,2491.1,2490.7,0.83946372]
[1729709200223,4.01453,2491.0,2490.7,0.83946372]
[1729709200420,0.823,2491.3,2490.6,2.07515457]
[1729709200421,0.823,2491.3,2490.6,1.66366372]
[1729709200661,0.823,2491.3,2490.6,1.74395765]
[1729709200866,4.01388,2491.4,2490.7,0.83946372]
[1729709201027,4.01388,2491.4,2490.8,0.9197496]
[1729709201235,4.01388,2491.4,2490.8,0.83946372]
[1729709201633,4.01388,2491.4,2490.9,0.83946372]
[1729709201935,4.01388,2491.4,2490.9,1.04850555]
[1729709202720,4.01411,2491.3,2490.9,1.04850555]
[1729709202828,4.46621231,2491.4,2490.9,1.04850555]
[1729709203163,8.0265,2491.8,2491.0,1.71434513]
[1729709203465,4.01348,2491.6,2491.0,1.63406372]
[1729709203636,4.01348,2491.6,2491.0,1.27204703]
[1729709203828,8.47961231,2491.7,2491.0,2.11151075]
[1729709204374,4.01368,2491.5,2491.0,0.87487402]
[1729709205148,0.12496258,2491.4,2491.0,1.71433774]
[1729709205545,8.02688,2491.7,2491.0,1.71433774]
[1729709205750,0.12500486,2491.3,2491.2,0.8276]
[1729709205975,0.1207432,2492.4,2491.6,4.01348]
[1729709206247,0.1207432,2492.4,2492.2,0.7522]
[1729709206630,0.1207432,2492.4,2491.9,0.83752819]
[1729709206830,4.1329332,2492.4,2492.0,0.83752819]
[1729709207030,4.1329332,2492.4,2491.9,1.58972819]
[1729709207281,0.1207432,2492.4,2491.9,1.58972819]
[1729709207565,4.1329632,2492.4,2491.9,1.58972819]
[1729709207767,4.1329632,2492.4,2492.0,0.08024514]
[1729709207978,4.1329632,2492.4,2491.9,1.58972819]
[1729709207979,4.01245,2492.3,2491.9,1.58972819]
[1729709208178,4.01245,2492.3,2491.7,0.83752819]
[1729709208330,4.01259,2492.2,2491.6,1.61602819]
[1729709208536,4.1330832,2492.4,2491.6,2.20920724]
[1729709209038,4.01251,2492.3,2491.6,2.20920724]
[1729709209375,4.01251,2492.3,2491.4,0.83752819]
[1729709209376,4.01308,2491.9,2491.4,0.83752819]
[1729709209576,4.46621231,2492.0,2491.4,0.08026646]
[1729709209872,4.01279,2492.1,2491.4,0.08026646]
[1729709209873,4.01278,2492.1,2491.4,0.08026646]
[1729709210044,4.01284,2492.0,2491.3,1.66222819]
[1729709210289,4.01316,2491.8,2491.3,0.8247]
[1729709210472,4.01308,2491.9,2491.4,0.08026811]
[1729709210674,4.01324,2491.8,2491.4,0.08026811]
[1729709210986,8.02621,2491.9,2491.3,0.90496811]
[1729709211204,4.81638,2491.9,2491.3,0.90496811]
[1729709211538,4.01327,2491.8,2491.3,0.90496811]
[1729709211700,4.01308,2491.9,2491.3,0.90496811]
[1729709212014,4.01279,2492.1,2491.4,0.0802643]
[1729709212216,4.02245,2492.3,2491.4,0.0802643]
[1729709212217,4.01245,2492.3,2491.4,0.0802643]
[1729709212396,4.01245,2492.3,2491.4,0.57215673]
[1729709212397,8.02496,2492.3,2491.4,0.57215673]
[1729709212712,4.01236,2492.3,2491.6,0.8164]
[1729709212915,0.1207432,2492.4,2491.6,0.8164]
[1729709212916,4.1330332,2492.4,2491.6,0.8164]
[1729709213222,4.1329332,2492.4,2491.7,0.08025113]
[1729709213519,4.1329332,2492.4,2491.6,0.8164]
[1729709213688,0.12154252,2492.3,2491.7,0.482994]
[1729709214032,4.13393252,2492.3,2491.7,0.482994]
[1729709214220,4.13393252,2492.3,2491.6,0.8164]
[1729709214426,0.12154252,2492.3,2491.6,0.8164]
[1729709214594,0.12154252,2492.3,2491.7,0.08024798]
[1729709214810,4.13391252,2492.3,2491.7,0.08024798]
[1729709215119,0.12154252,2492.3,2491.7,0.08024798]
[1729709215332,4.78713,2492.2,2491.6,0.8164]
[1729709215624,0.12182425,2492.1,2491.6,0.8164]
[1729709215827,0.12182425,2492.1,2491.8,3.0]
[1729709216027,0.12182425,2492.1,2491.6,4.46621231]
[1729709216028,0.1207432,2492.4,2492.0,0.8318]
[1729709216382,4.1330432,2492.4,2492.0,0.8318]
[1729709216626,4.1330432,2492.4,2491.7,0.08024936]
[1729709216627,4.01235,2492.3,2491.7,0.08024936]
[1729709216921,4.01254,2492.2,2491.7,0.08024936]
[1729709217290,4.1329332,2492.4,2491.7,0.08024936]
[1729709217627,4.0126,2492.2,2491.5,0.7569]
[1729709217899,4.01268,2492.1,2491.5,0.7569]
[1729709218171,0.1207432,2492.4,2491.5,0.7569]
[1729709218172,0.1207432,2492.4,2491.6,0.08025426]
[1729709218336,4.01292,2492.0,2491.5,0.7569]
[1729709218538,4.01392,2491.4,2491.2,0.8154]
[1729709218886,4.0138,2491.4,2490.9,0.89567418]
[1729709219039,4.01364,2491.5,2490.9,0.8154]
[1729709219379,4.46621231,2491.7,2490.9,0.8154]
[1729709219576,4.01393,2491.4,2490.9,0.8154]
[1729709219744,4.01393,2491.4,2490.1,5.7225046]
[1729709219745,4.01409,2491.3,2490.5,4.91077321]
[1729709219940,4.01409,2491.3,2490.6,0.49107732]
[1729709220252,0.8051,2491.6,2490.9,0.8154]
[1729709220580,4.81815,2491.9,2490.9,0.8154]
[1729709220765,4.01285,2492.0,2491.1,0.8154]
[1729709220971,4.01372,2491.5,2491.1,0.8154]
[1729709221170,4.01327,2491.8,2491.2,0.08027951]
[1729709221373,4.01332,2491.7,2491.1,0.8154]
[1729709221574,4.01327,2491.8,2491.1,1.298399]
[1729709221743,0.7689,2491.5,2491.2,0.08027309]
[1729709221946,4.01504,2490.7,2490.1,0.8307]
[1729709222191,0.01,2491.5,2490.3,4.01555]
[1729709222192,4.01364,2491.5,2490.3,4.01555]
[1729709222486,4.01374,2491.5,2490.6,0.7994]
[1729709222692,0.7689,2491.6,2490.7,4.09519308]
[1729709222981,8.47946231,2491.8,2490.8,4.58440636]
[1729709223180,4.01301,2491.9,2491.0,4.01445]
[1729709223387,8.02612,2491.9,2491.0,4.01445]
[1729709223560,4.01301,2491.9,2491.1,0.8248]
[1729709223883,0.8243,2492.0,2491.1,0.8248]
[1729709223884,4.01292,2492.0,2491.1,4.83907]
[1729709224057,4.01292,2492.0,2491.2,0.885352]
[1729709224247,0.8331,2492.3,2491.4,0.8248]
[1729709224445,4.01271,2492.1,2491.4,0.8248]
[1729709225093,8.02534,2492.2,2491.4,0.8248]
[1729709225321,4.01268,2492.1,2491.4,0.8248]
[1729709225459,0.11742833,2492.1,2491.5,0.483869]
[1729709225995,4.13022833,2492.1,2491.4,0.8248]
[1729709226298,4.01298,2492.0,2491.4,0.8248]
[1729709226453,4.01325,2491.8,2491.4,0.8248]
[1729709226653,4.01299,2492.0,2491.4,0.8248]
[1729709226894,0.11742833,2491.7,2491.5,0.08026637]
[1729709227058,4.01278,2492.1,2491.4,0.8248]
[1729709227257,0.11742833,2491.6,2491.4,0.55869]
[1729709227586,0.11742833,2491.5,2491.4,4.57249]
[1729709227800,0.11742833,2491.5,2491.4,0.55869]
[1729709227951,4.01254,2492.2,2491.4,4.57249]
[1729709228151,4.13015833,2492.1,2491.4,0.55869]
[1729709228375,0.11742833,2492.1,2491.8,4.01316]
[1729709228576,0.1207432,2492.4,2491.8,4.01316]
[1729709228785,0.11348368,2492.0,2491.8,4.01316]
[1729709229134,0.1207432,2492.4,2491.9,0.080245]
[1729709229411,0.11350491,2492.3,2491.6,4.01336]
[1729709229613,0.11350491,2492.3,2491.7,0.7470615]
[1729709229795,4.01253,2492.2,2491.5,0.457255]
[1729709229978,4.12597491,2492.3,2491.4,3.0]
[1729709230184,0.1207432,2492.4,2491.6,3.0]
[1729709230185,0.11372423,2492.1,2491.6,3.0]
[1729709230506,0.1207432,2492.4,2491.8,0.7606]
[1729709230669,0.11371715,2492.0,2491.8,0.7606]
[1729709230865,0.1207432,2492.4,2491.8,1.537999]
[1729709231098,0.11371715,2491.9,2491.8,1.537999]
[1729709231364,0.1207432,2492.4,2491.8,1.537999]
[1729709231577,0.11373837,2491.9,2491.8,1.537999]
[1729709231872,0.1207432,2492.4,2491.8,0.7606]
[1729709232066,0.11373837,2491.9,2491.8,0.7606]
[1729709232302,4.01252,2492.2,2491.8,0.7606]
[1729709232492,0.11373837,2491.9,2491.8,0.7606]
[1729709232699,4.01239,2492.3,2491.8,0.7606]
[1729709233005,4.1330532,2492.4,2491.8,0.7606]
[1729709233006,0.1207432,2492.4,2491.8,0.7606]
[1729709233308,0.11375959,2492.2,2492.1,4.82858]
[1729709233472,0.11375252,2492.3,2492.2,5.71255]
[1729709233672,0.1207432,2492.4,2492.2,5.79277966]
[1729709233915,0.1207432,2492.4,2492.3,0.08022885]
[1729709234314,0.1207432,2492.4,2492.2,1.70004]
[1729709234605,0.1207432,2492.4,2492.3,0.87126]
[1729709235016,0.23449572,2492.4,2492.3,0.87126]
[1729709235167,0.23449572,2492.4,2492.3,1.66436]
[1729709235373,0.035,2493.2,2492.5,0.7931]
[1729709235611,0.035,2493.2,2493.1,7.80417]
[1729709235793,0.035,2493.2,2493.1,0.7931]
[1729709236212,0.14875252,2493.2,2493.1,0.7931]
[1729709236371,0.035,2493.2,2493.1,0.7931]
[1729709236571,0.035,2493.2,2493.1,1.273547]
[1729709236867,0.035,2493.2,2493.1,0.7931]
[1729709237075,0.14875252,2493.2,2493.1,0.7931]
[1729709237315,0.035,2493.2,2493.1,0.7931]
[1729709237500,0.14875252,2493.2,2493.1,0.7931]
[1729709238974,0.035,2493.2,2493.1,0.7931]
[1729709239174,0.14969282,2493.2,2493.1,0.7931]
[1729709239475,0.035,2493.2,2493.1,0.7931]
[1729709239675,0.14968576,2493.2,2493.1,0.7931]
[1729709239911,0.035,2493.2,2492.9,0.7823]
[1729709240403,4.04598,2493.2,2492.3,4.76734]
[1729709240583,0.11577476,2493.1,2492.4,0.08022129]
[1729709240903,0.11577476,2493.1,2491.8,0.7551]
[1729709240904,4.01187,2492.6,2491.8,0.7551]
[1729709241102,4.01187,2492.6,2491.9,0.08024122]
[1729709241271,5.26721231,2492.9,2491.8,1.31568482]
[1729709241272,4.01223,2492.4,2491.8,1.31568482]
[1729709241476,4.01223,2492.4,2491.9,0.0802451]
[1729709241704,0.035,2493.2,2492.1,4.01262]
[1729709242011,0.035,2493.2,2492.2,0.08022546]
[1729709242012,4.01163,2492.8,2492.2,0.08022546]
[1729709242214,4.01163,2492.8,2492.0,0.8098]
[1729709242215,4.01179,2492.7,2492.3,0.08023828]
[1729709242419,4.12718308,2492.7,2492.1,0.08023904]
[1729709242573,0.11539308,2492.7,2492.1,0.08023904]
[1729709242778,4.12713308,2492.7,2492.1,0.97182194]
[1729709243085,0.11539308,2492.7,2492.4,4.01207]
[1729709243389,0.035,2493.2,2492.6,3.7679]
[1729709243800,4.12204864,2493.1,2492.6,0.7679]
[1729709244011,4.01131,2493.0,2492.3,0.7539]
[1729709244322,0.11095864,2493.1,2492.4,0.08023691]
[1729709244478,0.799,2493.1,2492.3,0.7539]
[1729709244681,0.799,2493.1,2492.0,0.83752819]
[1729709244682,4.01155,2492.8,2492.0,0.816]
[1729709244976,4.51121231,2493.2,2491.8,0.56058482]
[1729709244977,4.01246,2492.3,2491.8,0.56058482]
[1729709245290,0.11095864,2492.2,2491.9,0.08025359]
[1729709245524,0.11095864,2492.2,2491.9,0.62724943]
[1729709245824,0.8526,2493.2,2492.0,0.8289]
[1729709245994,8.0239,2492.6,2492.1,0.08024403]
[1729709246325,4.01194,2492.6,2492.1,0.08024403]
[1729709246480,4.01194,2492.6,2492.0,0.8289]
[1729709246681,4.01205,2492.5,2492.0,0.8289]
[1729709246874,4.11931002,2492.5,2492.0,0.8289]
[1729709247123,4.11931002,2492.5,2491.7,0.88884729]
[1729709247124,4.01245,2492.3,2491.7,0.88884729]
[1729709247328,4.01245,2492.3,2491.7,1.46283284]
[1729709247991,4.01219,2492.4,2491.7,1.46283284]
[1729709248317,0.10726002,2492.2,2491.7,0.88884729]
[1729709248495,4.01244,2492.3,2491.7,0.88884729]
[1729709248815,0.10726002,2492.1,2491.7,0.88884729]
[1729709249014,4.01252,2492.2,2491.7,0.88884729]
[1729709249189,0.10726002,2492.0,2491.7,0.8086]
[1729709249391,0.7559,2492.4,2491.3,0.7909]
[1729709249591,4.0134,2491.7,2491.3,0.7909]
[1729709249918,4.57347233,2491.9,2491.1,2.94339622]
[1729709249919,4.01331,2491.8,2491.1,2.94339622]
[1729709250103,0.8209,2491.5,2491.1,2.07222167]
[1729709250304,4.01401,2491.3,2491.1,2.07222167]
[1729709250494,4.01397,2491.3,2490.8,0.7785]
[1729709250698,4.01416,2491.2,2490.8,0.7785]
[1729709250884,0.10697653,2491.2,2490.8,0.7785]
[1729709251297,3.81397,2491.3,2490.8,0.7785]
[1729709251517,0.10697653,2491.1,2490.8,0.7785]
[1729709251723,4.01414,2491.2,2490.8,0.7785]
[1729709251928,0.10697653,2491.0,2490.8,0.7785]
[1729709252116,8.02813,2491.3,2490.8,0.7785]
[1729709252431,4.01406,2491.3,2490.6,0.08028921]
[1729709252726,4.83462,2491.5,2490.9,0.7941]
[1729709252727,0.10697653,2491.2,2490.9,0.7941]
[1729709252925,0.10697653,2491.2,2490.9,0.87438186]
[1729709253092,4.01372,2491.5,2490.9,0.87438186]
[1729709253293,0.10697653,2491.1,2490.9,0.87438186]
[1729709253484,4.01372,2491.5,2491.0,0.48890619]
[1729709253691,4.01372,2491.5,2490.9,0.87438186]
[1729709253892,4.01388,2491.4,2490.9,0.7941]
[1729709254624,0.10697653,2491.3,2490.9,0.7941]
[1729709255088,4.01372,2491.5,2490.9,0.7941]
[1729709255289,0.10697653,2491.2,2490.9,1.76475407]
[1729709255602,0.1061471,2491.1,2490.9,1.76475407]
[1729709255918,8.85471,2491.7,2490.9,5.77934407]
[1729709256117,0.1061471,2491.0,2490.9,5.77934407]
[1729709256319,2.39952481,2492.7,2491.3,0.7696]
[1729709256320,4.01273,2492.1,2491.3,0.7696]
[1729709256616,4.01261,2492.2,2491.4,4.09402545]
[1729709256921,4.46621231,2492.5,2491.7,4.01324]
[1729709256922,4.01205,2492.5,2491.7,4.01324]
[1729709257230,4.01221,2492.4,2491.8,0.401324]
[1729709257888,4.01205,2492.5,2491.8,0.401324]
[1729709258092,0.7647,2492.6,2491.5,4.83714]
[1729709258093,4.01235,2492.3,2491.5,4.83714]
[1729709258325,4.01286,2492.0,2491.5,0.8236]
[1729709258497,4.01244,2492.3,2491.6,0.08026037]
[1729709258698,4.01253,2492.2,2491.6,0.08026037]
[1729709258927,4.01219,2492.4,2491.6,4.09370037]
[1729709259230,4.01205,2492.5,2491.7,4.90632204]
[1729709259430,4.01205,2492.5,2491.8,4.09339264]
[1729709259932,8.78867,2492.6,2491.9,0.783]
[1729709260105,4.01214,2492.5,2491.9,0.783]
[1729709260315,4.77665,2492.6,2491.9,0.783]
[1729709260623,4.01227,2492.4,2491.9,0.783]
[1729709261889,4.0124,2492.3,2491.9,0.783]
[1729709262200,4.76372,2492.1,2491.1,0.8002]
[1729709262391,0.751,2492.1,2491.4,4.01378]
[1729709262589,0.751,2492.1,2491.1,1.37960904]
[1729709262590,4.01241,2492.3,2491.6,4.01347]
[1729709262791,4.0123,2492.4,2491.6,4.09373063]
[1729709262991,4.0123,2492.4,2491.5,0.8002]
[1729709262992,4.01294,2492.0,2491.5,0.8002]
[1729709263228,4.0126,2492.2,2491.5,0.8002]
[1729709263431,0.7803,2492.3,2491.5,1.36988099]
[1729709263432,4.01276,2492.1,2491.5,1.36988099]
[1729709263725,4.01286,2492.0,2491.5,1.36988099]
[1729709263932,4.01276,2492.1,2491.5,1.36988099]
[1729709264230,4.01255,2492.2,2491.5,1.36988099]
[1729709264395,4.01291,2492.0,2491.5,0.8002]
[1729709264932,4.01277,2492.1,2491.5,0.8002]
[1729709265426,4.01313,2491.9,2491.5,0.8002]
[1729709265641,4.01309,2491.9,2491.5,0.8002]
[1729709265928,4.01309,2491.9,2490.7,4.8312]
[1729709265929,4.01372,2491.5,2490.7,4.8312]
[1729709266134,4.01372,2491.5,2490.8,4.62705826]
[1729709266295,4.01351,2491.6,2490.8,8.64173826]
[1729709266630,4.77974,2491.8,2491.0,4.83065]
[1729709266851,4.01334,2491.7,2491.0,0.8163]
[1729709267146,8.02679,2491.7,2491.1,0.48308]
[1729709267342,4.01334,2491.7,2491.0,0.8163]
[1729709267637,4.01313,2491.9,2491.1,0.88527574]
[1729709267845,4.01316,2491.8,2491.1,0.805]
[1729709268041,4.01295,2492.0,2491.1,4.89952092]
[1729709268042,4.01284,2492.0,2491.1,4.89952092]
[1729709268343,8.47881231,2492.2,2491.4,4.01372]
[1729709268663,4.01232,2492.4,2491.7,0.7671]
[1729709268664,4.01222,2492.4,2491.7,0.7671]
[1729709268943,4.79675,2492.5,2491.7,4.78039]
[1729709269442,8.80887,2492.5,2491.7,4.78039]
[1729709269615,4.01228,2492.4,2491.7,0.7671]
[1729709269814,5.25091231,2492.5,2491.7,0.7671]
[1729709270142,4.46621231,2492.2,2491.2,0.8194]
[1729709270339,8.02522,2492.2,2491.5,0.8194]
[1729709270539,8.02522,2492.2,2491.5,1.39100102]
[1729709270540,0.10227435,2492.1,2491.5,1.39100102]
[1729709270849,4.11496435,2492.1,2491.5,1.39100102]
[1729709271438,4.01284,2492.0,2491.5,1.39100102]
[1729709271648,4.01284,2492.0,2491.5,1.31073807]
[1729709272023,0.10227435,2491.9,2491.5,1.31073807]
[1729709272204,0.10227435,2491.9,2491.6,0.54047211]
[1729709272544,4.01258,2492.2,2491.6,0.54047211]
[1729709272727,0.10227435,2491.8,2491.6,0.54047211]
[1729709272913,4.0127,2492.1,2491.6,0.54047211]
[1729709273116,0.10227435,2491.7,2491.6,0.54047211]
[1729709273315,4.0127,2492.1,2491.6,0.54047211]
[1729709273943,4.01237,2492.3,2491.6,0.54047211]
[1729709273944,0.10227435,2492.0,2491.6,0.54047211]
[1729709274343,4.01278,2492.1,2491.6,0.54047211]
[1729709274649,4.01249,2492.3,2491.6,0.54047211]
[1729709274822,0.10227435,2492.0,2491.7,0.39696108]
[1729709275024,4.01249,2492.3,2491.7,0.39696108]
[1729709275025,4.0127,2492.1,2491.7,0.39696108]
[1729709275238,0.10227435,2491.9,2491.7,0.39696108]
[1729709275463,8.02495,2492.3,2491.7,0.39696108]
[1729709275754,0.7847,2492.5,2491.6,0.54047211]
[1729709275755,0.10227435,2491.8,2491.6,0.54047211]
[1729709276059,0.10227435,2491.7,2491.6,0.08026149]
[1729709276455,4.01269,2492.1,2491.6,0.08026149]
[1729709276758,0.10227435,2491.7,2491.5,0.8194]
[1729709276938,4.01269,2492.1,2491.5,0.8194]
[1729709277133,0.10227435,2491.6,2491.5,0.8194]
[1729709277320,4.01269,2492.1,2491.5,0.8194]
[1729709277524,0.10227435,2491.6,2491.5,1.30272]
[1729709277723,0.7847,2492.5,2491.5,0.8194]
[1729709277925,0.10242355,2491.6,2491.5,4.83295]
[1729709278236,4.01253,2492.2,2491.5,4.83295]
[1729709278860,0.10242355,2492.1,2491.5,4.83295]
[1729709279072,0.10242355,2492.1,2491.5,0.8194]
[1729709279073,4.01292,2492.0,2491.5,0.8194]
[1729709279429,8.02585,2492.0,2491.5,0.8194]
[1729709279756,4.01327,2491.8,2491.5,0.8194]
[1729709279959,4.01327,2491.8,2491.0,8.02865]
[1729709279960,4.01343,2491.7,2491.1,0.7907]
[1729709280179,4.01351,2491.6,2491.1,1.271212]
[1729709280323,4.01408,2491.3,2490.7,0.7907]
[1729709280524,4.78735,2491.5,2490.7,0.7907]
[1729709280720,4.01438,2491.1,2490.7,0.7907]
[1729709281161,0.10275039,2491.0,2490.7,0.7907]
[1729709282068,4.01413,2491.2,2490.7,0.7907]
[1729709282069,0.10275039,2490.9,2490.7,0.7907]
[1729709282480,4.01413,2491.2,2490.7,0.7907]
[1729709282638,0.10275039,2490.8,2490.7,0.7907]
[1729709282957,0.10275039,2490.8,2490.7,1.72718029]
[1729709283166,4.01382,2491.4,2490.7,5.82240501]
[1729709283335,4.01366,2491.5,2490.9,4.01455]
[1729709283534,4.76922,2491.7,2490.7,1.80747501]
[1729709283535,0.10275039,2491.3,2491.0,4.01443]
[1729709283735,4.76922,2491.7,2491.2,0.7758]
[1729709283736,0.10223164,2491.4,2491.2,0.7758]
[1729709283973,4.01309,2491.9,2491.2,1.26284258]
[1729709284277,0.7559,2492.0,2491.2,1.26284258]
[1729709284568,0.10223164,2491.8,2491.6,4.01345]
[1729709284872,0.10226718,2491.7,2491.6,4.01345]
[1729709285237,4.0127,2492.1,2491.6,0.7817]
[1729709285593,0.10242354,2491.7,2491.6,0.7817]
[1729709285746,8.0259,2492.0,2491.6,0.7817]
[1729709285951,0.10242354,2491.7,2491.6,0.7817]
[1729709286172,4.01308,2491.9,2491.6,0.7817]
[1729709286335,0.10263672,2491.7,2491.6,0.7817]
[1729709286541,4.01308,2491.9,2491.6,0.7817]
[1729709286775,0.10263672,2491.7,2491.3,0.819]
[1729709286979,4.01321,2491.8,2491.3,1.302299]
[1729709287274,9.08801034,2492.5,2491.4,4.83278]
[1729709287574,0.10263672,2491.7,2491.5,0.89926291]
[1729709287747,4.01243,2492.3,2491.5,0.89926291]
[1729709287748,4.01261,2492.2,2491.5,4.91282291]
[1729709287956,0.10265803,2491.6,2491.5,4.91282291]
[1729709288149,4.01238,2492.3,2491.6,4.01341]
[1729709288482,0.10265803,2492.2,2491.6,4.01341]
[1729709289543,0.10265803,2492.2,2491.7,4.01331]
[1729709289873,0.10265803,2492.2,2491.8,0.401331]
[1729709290284,8.02482,2492.3,2491.8,0.401331]
[1729709290583,4.01303,2491.9,2491.3,5.282509]
[1729709290944,0.10273619,2491.8,2491.3,5.282509]
[1729709291256,8.80181,2492.0,2491.4,0.0802674]
[1729709291257,4.013,2491.9,2491.4,0.0802674]
[1729709291456,0.10273619,2491.7,2491.3,1.268599]
[1729709291763,4.78883,2492.0,2491.3,5.282439]
[1729709291963,0.10273619,2491.6,2491.4,4.55007064]
[1729709292275,8.02518,2492.2,2491.5,4.09380869]
[1729709292462,4.01258,2492.2,2491.5,4.09378869]
[1729709292668,4.0127,2492.1,2491.7,0.8006]
[1729709293078,4.01288,2492.0,2491.5,0.8306]
[1729709293384,4.01314,2491.9,2491.5,0.8306]
[1729709293741,4.01284,2492.0,2491.5,0.8306]
[1729709294441,4.01323,2491.8,2491.5,0.8306]
[1729709294751,4.01308,2491.9,2491.5,0.8306]
[1729709295177,4.01326,2491.8,2491.2,0.8119]
[1729709295380,4.01323,2491.8,2491.2,1.294523]
[1729709296281,4.45872982,2492.1,2491.5,4.01351]
[1729709296578,0.7962,2492.3,2491.6,4.01333]
[1729709296895,4.01252,2492.2,2491.6,4.0134]
[1729709297175,4.01276,2492.1,2491.4,8.83558]
[1729709297375,4.01276,2492.1,2491.5,0.883558]
[1729709297581,4.01255,2492.2,2491.6,4.01346]
[1729709297984,4.01255,2492.2,2491.5,4.97733098]
[1729709298194,4.01269,2492.1,2491.5,4.897068]
[1729709298484,4.01252,2492.2,2491.6,4.01346]
[1729709298653,4.01252,2492.2,2491.6,4.9853308]
[1729709299089,4.01252,2492.2,2491.6,5.06559371]
[1729709299254,4.80481,2492.7,2492.0,4.01284]
[1729709299455,4.01139,2492.9,2492.2,4.01244]
[1729709299666,4.01139,2492.9,2492.3,4.01223]
[1729709299875,0.7931,2493.0,2492.4,0.8082]
[1729709300163,4.0111,2493.1,2492.5,4.09215147]
[1729709300588,0.09942226,2493.0,2492.7,4.01168]
[1729709300993,0.035,2493.2,2492.9,4.81948]
[1729709301292,0.035,2493.2,2493.1,4.01107]
[1729709301459,0.035,2493.2,2493.1,0.97126381]
[1729709301783,0.035,2493.2,2493.1,0.89105828]
[1729709301991,0.035,2493.2,2492.9,0.8082]
[1729709302155,0.035,2493.2,2492.9,4.81957]
[1729709302486,0.035,2493.2,2492.9,0.8082]
[1729709303874,0.035,2493.2,2492.9,4.8195]
[1729709304089,0.035,2493.2,2493.0,0.08021958]
[1729709304295,0.035,2493.2,2493.1,4.76657]
[1729709304449,0.035,2493.2,2493.1,4.84676785]
[1729709304655,0.035,2493.2,2493.1,5.68429604]
[1729709304854,0.035,2493.2,2493.1,4.84676785]
[1729709305197,0.035,2493.2,2493.1,4.76657]
[1729709305357,0.035,2493.2,2493.1,5.90251398]
[1729709308091,0.035,2493.2,2493.1,1.89144398]
[1729709308254,0.13628606,2493.2,2493.1,0.7555]
[1729709308454,0.035,2493.2,2493.1,0.7555]
[1729709308883,4.0459,2493.2,2492.8,0.825]
[1729709309056,0.13657752,2493.2,2492.8,0.825]
[1729709309477,4.14758752,2493.2,2492.8,0.825]
[1729709309789,0.13657752,2493.2,2492.6,0.825]
[1729709309996,4.14748752,2493.2,2492.6,0.825]
[1729709310362,4.01135,2493.0,2492.3,0.7521]
[1729709310580,4.45872982,2492.8,2492.3,0.7521]
[1729709310905,0.10116518,2492.7,2492.3,0.08024025]
[1729709311209,4.82497,2492.9,2492.1,0.83538552]
[1729709311210,5.27222982,2492.9,2492.1,0.83538552]
[1729709311370,0.10093049,2492.6,2492.1,1.5210613]
[1729709311560,4.01168,2492.8,2492.1,0.83538552]
[1729709311765,0.10093049,2492.5,2492.1,0.83538552]
[1729709311970,4.0118,2492.7,2492.1,0.83538552]
[1729709312275,4.01188,2492.6,2492.1,0.83538552]
[1729709312477,0.8265,2492.5,2492.1,0.83538552]
[1729709312710,4.0122,2492.4,2492.1,0.83538552]
[1729709312877,4.01235,2492.3,2492.1,0.83538552]
[1729709313086,4.0122,2492.4,2492.1,0.83538552]
[1729709313289,0.10060323,2492.2,2492.1,0.83538552]
[1729709313491,4.0122,2492.4,2492.1,0.83538552]
[1729709313695,0.10060323,2492.2,2492.1,0.83538552]
[1729709313905,0.8265,2492.5,2492.1,0.83538552]
[1729709314113,0.10060323,2492.2,2491.7,0.08025647]
[1729709314272,4.01264,2492.2,2491.6,0.7882]
[1729709314602,0.10060323,2492.1,2491.7,0.08025719]
[1729709315104,0.10048226,2492.0,2491.7,0.08025719]
[1729709315308,4.01272,2492.1,2491.6,0.7882]
[1729709315530,0.10048226,2491.9,2491.6,0.7882]
[1729709315679,4.01286,2492.0,2491.2,4.01402]
[1729709315873,0.09962153,2491.8,2491.3,1.220502]
[1729709316082,8.02675,2491.7,2491.0,0.8049]
[1729709316273,4.11296153,2491.7,2491.0,0.8049]
[1729709317195,4.01366,2491.5,2491.0,0.8049]
[1729709317507,0.09942936,2491.4,2491.1,4.09455691]
[1729709317706,4.83858,2491.9,2491.2,0.48994569]
[1729709317878,0.09942936,2491.3,2491.2,0.48994569]
[1729709318207,4.83858,2491.9,2491.2,0.48994569]
[1729709318421,0.7814,2490.8,2490.0,4.01593]
[1729709318587,5.07462143,2490.3,2489.9,0.02009]
[1729709318784,0.7814,2490.2,2489.9,0.02009]
[1729709319001,7.98001709,2490.2,2489.9,0.02009]
[1729709319209,8.11217216,2490.1,2489.9,0.02009]
[1729709319422,7.09954859,2490.0,2489.9,0.02009]
[1729709319714,10.6919973,2490.0,2489.9,0.02009]
[1729709319913,6.81132376,2490.0,2489.9,0.02009]
[1729709320078,10.0512418,2490.0,2489.9,0.02009]
[1729709320278,9.97096964,2490.0,2489.9,0.02009]
[1729709320812,10.52096964,2490.0,2489.9,0.02009]
[1729709321012,10.53096964,2490.0,2489.9,0.02009]
[1729709323610,10.52096964,2490.0,2489.9,0.02009]
[1729709323811,10.53096964,2490.0,2489.9,0.02009]